[Event "Early-Titled-Tuesday-Blitz-October-03-2023"]
[Site "Chess.com"]
[Date "2023.10.03"]
[Round "3"]
[White "RianKapriaga"]
[Black "MrVenky"]
[Result "0-1"]
[WhiteElo "2343"]
[BlackElo "2549"]
[TimeControl "180+1"]
[EndTime "8:27:47 PDT"]
[Termination "MrVenky won on time"]

1. d4 {[%clk 0:03:00.9]} 1... Nf6 {[%clk 0:02:58.9]} 2. Nf3 {[%clk 0:03:00.5]}
2... e6 {[%clk 0:02:58.1]} 3. e3 {[%clk 0:02:59]} 3... c5 {[%clk 0:02:54.2]} 4.
Bd3 {[%clk 0:02:55.5]} 4... b6 {[%clk 0:02:53.7]} 5. O-O {[%clk 0:02:54.3]} 5...
Bb7 {[%clk 0:02:53.9]} 6. c4 {[%clk 0:02:53.4]} 6... g6 {[%clk 0:02:53.5]} 7.
Nc3 {[%clk 0:02:51.8]} 7... Bg7 {[%clk 0:02:53.3]} 8. d5 {[%clk 0:02:32.7]} 8...
exd5 {[%clk 0:02:47.2]} 9. cxd5 {[%clk 0:02:31.8]} 9... Nxd5 {[%clk 0:02:28.5]}
10. Nxd5 {[%clk 0:02:23.8]} 10... Bxd5 {[%clk 0:02:25.6]} 11. Bxg6 {[%clk
0:02:22.8]} 11... hxg6 {[%clk 0:02:25]} 12. Qxd5 {[%clk 0:02:21.4]} 12... Nc6
{[%clk 0:02:24.9]} 13. Rd1 {[%clk 0:02:14.3]} 13... Qc7 {[%clk 0:02:23.8]} 14.
h3 {[%clk 0:02:10.7]} 14... f5 {[%clk 0:02:08.3]} 15. e4 {[%clk 0:01:38.6]}
15... O-O-O {[%clk 0:02:06.2]} 16. e5 {[%clk 0:01:06.8]} 16... Nxe5 {[%clk
0:01:38.4]} 17. Bf4 {[%clk 0:00:50.6]} 17... Nxf3+ {[%clk 0:01:33.9]} 18. Qxf3
{[%clk 0:00:42.4]} 18... Qc6 {[%clk 0:01:34]} 19. Qd3 {[%clk 0:00:31.6]} 19...
Rhe8 {[%clk 0:01:27.2]} 20. Rab1 {[%clk 0:00:21]} 20... d5 {[%clk 0:01:25.5]}
21. Qa6+ {[%clk 0:00:17.8]} 21... Qb7 {[%clk 0:01:24.5]} 22. Qa4 {[%clk
0:00:16.3]} 22... Re4 {[%clk 0:01:24.3]} 23. Qc2 {[%clk 0:00:10.5]} 23... Rxf4
{[%clk 0:01:24.2]} 24. b4 {[%clk 0:00:08.7]} 24... Rc4 {[%clk 0:01:23.8]} 25.
Qe2 {[%clk 0:00:06.6]} 25... Re4 {[%clk 0:01:22.9]} 26. Qb5 {[%clk 0:00:04.6]}
26... c4 {[%clk 0:01:22.5]} 27. Rbc1 {[%clk 0:00:01.8]} 27... a6 {[%clk
0:01:17.1]} 28. Qa4 {[%clk 0:00:01.4]} 28... b5 {[%clk 0:01:17.4]} 29. Qc2
{[%clk 0:00:01.3]} 29... d4 {[%clk 0:01:17.4]} 0-1

[Event "Early-Titled-Tuesday-Blitz-October-03-2023"]
[Site "Chess.com"]
[Date "2023.10.03"]
[Round "3"]
[White "Dewarfd"]
[Black "Der_Balak_3Halak"]
[Result "1-0"]
[WhiteElo "2132"]
[BlackElo "2334"]
[TimeControl "180+1"]
[EndTime "8:27:49 PDT"]
[Termination "Dewarfd won by resignation"]

1. d4 {[%clk 0:02:58.6]} 1... g6 {[%clk 0:03:00.9]} 2. e3 {[%clk 0:02:57.3]}
2... Bg7 {[%clk 0:03:01.8]} 3. Nf3 {[%clk 0:02:58.2]} 3... d5 {[%clk 0:03:01.6]}
4. Be2 {[%clk 0:02:58.7]} 4... Nd7 {[%clk 0:03:00.5]} 5. O-O {[%clk 0:02:57.9]}
5... e5 {[%clk 0:02:59.8]} 6. b4 {[%clk 0:02:54]} 6... exd4 {[%clk 0:02:52.8]}
7. exd4 {[%clk 0:02:54.6]} 7... Ne7 {[%clk 0:02:52.1]} 8. Bb2 {[%clk 0:02:54.5]}
8... O-O {[%clk 0:02:51.6]} 9. Nbd2 {[%clk 0:02:52.8]} 9... Nf5 {[%clk
0:02:49.5]} 10. c4 {[%clk 0:02:49.2]} 10... c6 {[%clk 0:02:43.7]} 11. a4 {[%clk
0:02:49.1]} 11... a6 {[%clk 0:02:32.4]} 12. Qb3 {[%clk 0:02:46.5]} 12... Nf6
{[%clk 0:02:27.3]} 13. b5 {[%clk 0:02:40.4]} 13... Ne4 {[%clk 0:02:19.5]} 14.
bxc6 {[%clk 0:02:34.2]} 14... bxc6 {[%clk 0:02:17.4]} 15. cxd5 {[%clk
0:02:34.2]} 15... cxd5 {[%clk 0:02:14.2]} 16. Nxe4 {[%clk 0:02:21.8]} 16... dxe4
{[%clk 0:02:15.1]} 17. Ne5 {[%clk 0:02:22.3]} 17... Nxd4 {[%clk 0:02:12.2]} 18.
Bxd4 {[%clk 0:02:07.8]} 18... Qxd4 {[%clk 0:02:13.1]} 19. Nc6 {[%clk 0:02:08]}
19... Qxa1 {[%clk 0:02:10]} 20. Rxa1 {[%clk 0:02:07.4]} 20... Bxa1 {[%clk
0:02:10.9]} 21. Bc4 {[%clk 0:01:55.1]} 21... Kg7 {[%clk 0:02:01.2]} 22. h4
{[%clk 0:01:49.9]} 22... Bd7 {[%clk 0:01:53.5]} 23. Qd1 {[%clk 0:01:45]} 23...
Bxc6 {[%clk 0:01:43.6]} 24. Qxa1+ {[%clk 0:01:45.2]} 24... f6 {[%clk 0:01:44.5]}
25. Qd4 {[%clk 0:01:38.3]} 25... Rfe8 {[%clk 0:01:41.8]} 26. Qc5 {[%clk
0:01:34.2]} 26... Bxa4 {[%clk 0:01:28.3]} 27. h5 {[%clk 0:01:30.7]} 27... Rac8
{[%clk 0:01:23.7]} 28. Qa7+ {[%clk 0:01:25.7]} 28... Kh6 {[%clk 0:01:23.6]} 29.
Bxa6 {[%clk 0:01:25.4]} 29... Rc1+ {[%clk 0:01:21.4]} 30. Kh2 {[%clk 0:01:25]}
30... Re5 {[%clk 0:01:19.6]} 31. Qe3+ {[%clk 0:01:24.6]} 31... Kg7 {[%clk
0:01:05.2]} 32. h6+ {[%clk 0:01:23.1]} 32... Kf7 {[%clk 0:01:05.2]} 33. Qxc1
{[%clk 0:01:22.9]} 33... g5 {[%clk 0:01:02.4]} 34. Qc7+ {[%clk 0:01:19.9]} 34...
Re7 {[%clk 0:01:02.6]} 35. Qc4+ {[%clk 0:01:19]} 35... Kg6 {[%clk 0:01:01.9]}
36. Qxa4 {[%clk 0:01:19.3]} 36... Kxh6 {[%clk 0:01:02.2]} 37. Be2 {[%clk
0:01:17.7]} 37... Kg6 {[%clk 0:01:00.1]} 38. Qa5 {[%clk 0:01:16.1]} 38... Re5
{[%clk 0:00:59.7]} 39. Qd8 {[%clk 0:01:15]} 39... Kg7 {[%clk 0:00:55.8]} 40. Bg4
{[%clk 0:01:14.5]} 40... h6 {[%clk 0:00:52.4]} 41. Qc7+ {[%clk 0:01:14]} 41...
Kg6 {[%clk 0:00:51.9]} 42. Qc8 {[%clk 0:01:14.4]} 42... Kg7 {[%clk 0:00:47.4]}
43. Bh5 {[%clk 0:01:14.7]} 43... e3 {[%clk 0:00:46.3]} 44. Qd7+ {[%clk
0:01:13.7]} 44... Kg8 {[%clk 0:00:45.2]} 45. Qf7+ {[%clk 0:01:13.5]} 45... Kh8
{[%clk 0:00:45.1]} 46. Bg6 {[%clk 0:01:13.9]} 1-0

[Event "Early-Titled-Tuesday-Blitz-October-03-2023"]
[Site "Chess.com"]
[Date "2023.10.03"]
[Round "3"]
[White "louis198"]
[Black "IngOscarArdila"]
[Result "0-1"]
[WhiteElo "2616"]
[BlackElo "2328"]
[TimeControl "180+1"]
[EndTime "8:27:50 PDT"]
[Termination "IngOscarArdila won by checkmate"]

1. d4 {[%clk 0:02:58.8]} 1... Nf6 {[%clk 0:02:59.9]} 2. Bf4 {[%clk 0:02:58.7]}
2... e6 {[%clk 0:02:59.1]} 3. e3 {[%clk 0:02:59.6]} 3... Bd6 {[%clk 0:02:59.1]}
4. Bd3 {[%clk 0:02:59.2]} 4... Bxf4 {[%clk 0:02:58.8]} 5. exf4 {[%clk
0:03:00.1]} 5... O-O {[%clk 0:02:59.1]} 6. Ne2 {[%clk 0:03:00.9]} 6... b6 {[%clk
0:02:56.8]} 7. O-O {[%clk 0:03:01.1]} 7... Bb7 {[%clk 0:02:57.2]} 8. c3 {[%clk
0:03:02]} 8... d6 {[%clk 0:02:56.8]} 9. Nd2 {[%clk 0:03:02.5]} 9... Nbd7 {[%clk
0:02:56.6]} 10. Re1 {[%clk 0:03:03.1]} 10... Re8 {[%clk 0:02:55.9]} 11. Ng3
{[%clk 0:03:03.5]} 11... Rc8 {[%clk 0:02:53.6]} 12. Nf3 {[%clk 0:03:04.1]} 12...
c5 {[%clk 0:02:53.2]} 13. f5 {[%clk 0:03:00.4]} 13... e5 {[%clk 0:02:44]} 14.
dxe5 {[%clk 0:03:00.9]} 14... Nxe5 {[%clk 0:02:43.2]} 15. Nxe5 {[%clk
0:02:58.7]} 15... Rxe5 {[%clk 0:02:23.1]} 16. Rxe5 {[%clk 0:02:59]} 16... dxe5
{[%clk 0:02:23.8]} 17. Qe2 {[%clk 0:02:59.9]} 17... Qc7 {[%clk 0:02:07.4]} 18.
Re1 {[%clk 0:02:59.9]} 18... Re8 {[%clk 0:02:06.2]} 19. Bb5 {[%clk 0:03:00.1]}
19... Bc6 {[%clk 0:01:57.7]} 20. Bxc6 {[%clk 0:03:00.7]} 20... Qxc6 {[%clk
0:01:57.6]} 21. Qa6 {[%clk 0:03:01.1]} 21... Qc7 {[%clk 0:01:53.8]} 22. Rd1
{[%clk 0:03:00.5]} 22... h6 {[%clk 0:01:47.5]} 23. h3 {[%clk 0:03:00.3]} 23...
e4 {[%clk 0:01:44.2]} 24. Nf1 {[%clk 0:03:00.8]} 24... Re7 {[%clk 0:01:17]} 25.
Ne3 {[%clk 0:03:00.3]} 25... Kh7 {[%clk 0:01:15.4]} 26. a4 {[%clk 0:02:53.8]}
26... Rd7 {[%clk 0:01:03.8]} 27. Rxd7 {[%clk 0:02:53.4]} 27... Qxd7 {[%clk
0:01:04.3]} 28. a5 {[%clk 0:02:54.1]} 28... Qc7 {[%clk 0:00:56.1]} 29. axb6
{[%clk 0:02:54.3]} 29... axb6 {[%clk 0:00:49.8]} 30. c4 {[%clk 0:02:54.8]} 30...
h5 {[%clk 0:00:22.1]} 31. Qa8 {[%clk 0:02:49.4]} 31... Qe5 {[%clk 0:00:17.1]}
32. Qa3 {[%clk 0:02:42.4]} 32... Qd4 {[%clk 0:00:16.3]} 33. Qb3 {[%clk
0:02:41.8]} 33... Nd7 {[%clk 0:00:11.6]} 34. Qb5 {[%clk 0:02:41.7]} 34... Kh6
{[%clk 0:00:09.4]} 35. Qc6+ {[%clk 0:02:41.5]} 35... Kh7 {[%clk 0:00:07.7]} 36.
Nd5 {[%clk 0:02:39.5]} 36... Ne5 {[%clk 0:00:05.9]} 37. Qxb6 {[%clk 0:02:30.1]}
37... Nxc4 {[%clk 0:00:05.7]} 38. Qd8 {[%clk 0:02:26.8]} 38... e3 {[%clk
0:00:06]} 39. fxe3 {[%clk 0:01:54.3]} 39... Nxe3 {[%clk 0:00:06.9]} 40. Nf6+
{[%clk 0:01:44.3]} 40... gxf6 {[%clk 0:00:05.2]} 41. Qf8 {[%clk 0:01:42.2]}
41... Ng4+ {[%clk 0:00:03.5]} 42. Kh1 {[%clk 0:01:41]} 42... Qd1# {[%clk
0:00:02.9]} 0-1

[Event "Early-Titled-Tuesday-Blitz-October-03-2023"]
[Site "Chess.com"]
[Date "2023.10.03"]
[Round "3"]
[White "Kopytkin"]
[Black "Brave_spirit12"]
[Result "0-1"]
[WhiteElo "2402"]
[BlackElo "2763"]
[TimeControl "180+1"]
[EndTime "8:27:51 PDT"]
[Termination "Brave_spirit12 won on time"]

1. d4 {[%clk 0:03:00.9]} 1... Nf6 {[%clk 0:02:59.9]} 2. Bg5 {[%clk 0:03:00.8]}
2... c6 {[%clk 0:02:59.7]} 3. c3 {[%clk 0:02:45.6]} 3... d5 {[%clk 0:02:51.9]}
4. Nd2 {[%clk 0:02:43.2]} 4... e6 {[%clk 0:02:48.5]} 5. e3 {[%clk 0:02:40.5]}
5... Be7 {[%clk 0:02:49.1]} 6. Bd3 {[%clk 0:02:39.9]} 6... O-O {[%clk
0:02:49.7]} 7. f4 {[%clk 0:02:35.7]} 7... c5 {[%clk 0:02:46.2]} 8. Ngf3 {[%clk
0:02:19.8]} 8... Nc6 {[%clk 0:02:39.3]} 9. O-O {[%clk 0:02:17.2]} 9... h6 {[%clk
0:02:37.2]} 10. Bxf6 {[%clk 0:02:17.2]} 10... Bxf6 {[%clk 0:02:38.1]} 11. Qe2
{[%clk 0:01:43.4]} 11... Bd7 {[%clk 0:02:35.3]} 12. Ne5 {[%clk 0:01:43.2]} 12...
cxd4 {[%clk 0:02:34]} 13. exd4 {[%clk 0:01:43.1]} 13... Bxe5 {[%clk 0:02:12.1]}
14. fxe5 {[%clk 0:01:42.8]} 14... f5 {[%clk 0:02:07.5]} 15. exf6 {[%clk
0:01:39.7]} 15... Rxf6 {[%clk 0:02:07.5]} 16. Rxf6 {[%clk 0:01:39.8]} 16... Qxf6
{[%clk 0:02:08.4]} 17. Rf1 {[%clk 0:01:40]} 17... Qe7 {[%clk 0:02:09]} 18. Nf3
{[%clk 0:01:25.1]} 18... Rf8 {[%clk 0:02:08.2]} 19. Re1 {[%clk 0:01:19.7]} 19...
Rf6 {[%clk 0:02:06.3]} 20. Qf2 {[%clk 0:00:54.9]} 20... Be8 {[%clk 0:02:04]} 21.
Qg3 {[%clk 0:00:43.8]} 21... Bh5 {[%clk 0:01:59.7]} 22. Ne5 {[%clk 0:00:42.4]}
22... Nxe5 {[%clk 0:01:47.6]} 23. Qxe5 {[%clk 0:00:22.4]} 23... Qf7 {[%clk
0:01:47.3]} 24. Rf1 {[%clk 0:00:15]} 24... Rxf1+ {[%clk 0:01:42.5]} 25. Bxf1
{[%clk 0:00:15.9]} 25... b6 {[%clk 0:01:36.4]} 26. Bd3 {[%clk 0:00:14.6]} 26...
Bg6 {[%clk 0:01:36.1]} 27. Bf1 {[%clk 0:00:13.6]} 27... Be4 {[%clk 0:01:33.3]}
28. h3 {[%clk 0:00:13.4]} 28... Qg6 {[%clk 0:01:31.8]} 29. Qb8+ {[%clk
0:00:12.2]} 29... Kh7 {[%clk 0:01:31.6]} 30. Qf4 {[%clk 0:00:13]} 30... Bb1
{[%clk 0:01:28.6]} 31. Qc1 {[%clk 0:00:12.2]} 31... Bxa2 {[%clk 0:01:27.7]} 32.
Qd1 {[%clk 0:00:12.6]} 32... Bc4 {[%clk 0:01:27.4]} 33. Bxc4 {[%clk 0:00:12.7]}
33... dxc4 {[%clk 0:01:28.3]} 34. Qe2 {[%clk 0:00:13]} 34... b5 {[%clk
0:01:26.4]} 35. Kh2 {[%clk 0:00:13.4]} 35... Qf5 {[%clk 0:01:26]} 36. Qf3 {[%clk
0:00:05.6]} 36... Qxf3 {[%clk 0:01:24.4]} 37. gxf3 {[%clk 0:00:05.7]} 37... Kg6
{[%clk 0:01:25.1]} 38. Kg3 {[%clk 0:00:03.1]} 38... Kf5 {[%clk 0:01:25.7]} 39.
h4 {[%clk 0:00:01.3]} 39... a5 {[%clk 0:01:26.2]} 0-1

[Event "Early-Titled-Tuesday-Blitz-October-03-2023"]
[Site "Chess.com"]
[Date "2023.10.03"]
[Round "3"]
[White "DanyKopy"]
[Black "HanSchut"]
[Result "1-0"]
[WhiteElo "2537"]
[BlackElo "2326"]
[TimeControl "180+1"]
[EndTime "8:27:51 PDT"]
[Termination "DanyKopy won by resignation"]

1. d4 {[%clk 0:02:59.3]} 1... Nf6 {[%clk 0:02:59.1]} 2. Nf3 {[%clk 0:02:59.1]}
2... g6 {[%clk 0:02:59.6]} 3. Nbd2 {[%clk 0:02:57.9]} 3... d5 {[%clk 0:03:00.1]}
4. b4 {[%clk 0:02:55.7]} 4... a5 {[%clk 0:02:58.9]} 5. b5 {[%clk 0:02:55.1]}
5... c5 {[%clk 0:02:59.8]} 6. dxc5 {[%clk 0:02:52.1]} 6... Ne4 {[%clk 0:02:54]}
7. Bb2 {[%clk 0:02:49.4]} 7... f6 {[%clk 0:02:31.7]} 8. Nxe4 {[%clk 0:02:45.5]}
8... dxe4 {[%clk 0:02:32.6]} 9. Qxd8+ {[%clk 0:02:45]} 9... Kxd8 {[%clk
0:02:33.5]} 10. Ng5 {[%clk 0:02:45.1]} 10... Ke8 {[%clk 0:02:10.2]} 11. Nxe4
{[%clk 0:02:40]} 11... Nd7 {[%clk 0:02:07.7]} 12. O-O-O {[%clk 0:02:34.5]} 12...
a4 {[%clk 0:01:51.7]} 13. e3 {[%clk 0:02:29.7]} 13... a3 {[%clk 0:01:42]} 14.
Bc3 {[%clk 0:02:28.5]} 14... Ra4 {[%clk 0:01:20.6]} 15. Rd4 {[%clk 0:02:24.7]}
15... Rxd4 {[%clk 0:01:15.1]} 16. exd4 {[%clk 0:02:25.6]} 16... Bh6+ {[%clk
0:01:11.8]} 17. Bd2 {[%clk 0:02:21.5]} 17... Bxd2+ {[%clk 0:01:10.9]} 18. Kxd2
{[%clk 0:02:22.4]} 18... Kf7 {[%clk 0:01:05.8]} 19. Bc4+ {[%clk 0:02:21.7]}
19... Kg7 {[%clk 0:01:04.8]} 20. Be6 {[%clk 0:02:16.6]} 20... Rd8 {[%clk
0:01:01.9]} 21. c3 {[%clk 0:02:12.1]} 21... f5 {[%clk 0:00:32.4]} 22. Ng5 {[%clk
0:01:39.6]} 22... h6 {[%clk 0:00:16]} 23. Nf7 {[%clk 0:01:31.7]} 23... Nxc5
{[%clk 0:00:11.8]} 24. Nxd8 {[%clk 0:01:28.7]} 24... Nxe6 {[%clk 0:00:12.2]} 25.
Nxe6+ {[%clk 0:01:28.6]} 25... Bxe6 {[%clk 0:00:13.1]} 26. Kd3 {[%clk
0:01:26.1]} 26... Bxa2 {[%clk 0:00:13.5]} 27. Ra1 {[%clk 0:01:25.5]} 27... Bd5
{[%clk 0:00:14.2]} 28. Rxa3 {[%clk 0:01:24.5]} 28... Bxg2 {[%clk 0:00:14.9]} 29.
c4 {[%clk 0:01:23.9]} 29... Be4+ {[%clk 0:00:14.9]} 30. Kc3 {[%clk 0:01:22.5]}
30... g5 {[%clk 0:00:15.7]} 31. d5 {[%clk 0:01:21.6]} 31... e6 {[%clk
0:00:11.3]} 32. d6 {[%clk 0:01:16.3]} 32... Kf7 {[%clk 0:00:09.9]} 33. Ra8
{[%clk 0:01:15.8]} 33... e5 {[%clk 0:00:09.4]} 34. d7 {[%clk 0:01:14.3]} 1-0

[Event "Early-Titled-Tuesday-Blitz-October-03-2023"]
[Site "Chess.com"]
[Date "2023.10.03"]
[Round "3"]
[White "NowInChess"]
[Black "elmusmolamas"]
[Result "0-1"]
[WhiteElo "2248"]
[BlackElo "2481"]
[TimeControl "180+1"]
[EndTime "8:28:05 PDT"]
[Termination "elmusmolamas won on time"]

1. e4 {[%clk 0:03:00.9]} 1... c6 {[%clk 0:03:00.2]} 2. d4 {[%clk 0:03:00.2]}
2... g6 {[%clk 0:03:01.1]} 3. Nc3 {[%clk 0:02:59]} 3... d5 {[%clk 0:03:02]} 4.
h3 {[%clk 0:02:58.4]} 4... Bg7 {[%clk 0:03:01.7]} 5. Nf3 {[%clk 0:02:58.9]} 5...
dxe4 {[%clk 0:03:02.4]} 6. Nxe4 {[%clk 0:02:58.7]} 6... Nf6 {[%clk 0:03:03.3]}
7. Bd3 {[%clk 0:02:55.1]} 7... O-O {[%clk 0:03:03.7]} 8. O-O {[%clk 0:02:53.5]}
8... Nbd7 {[%clk 0:03:04.3]} 9. c3 {[%clk 0:02:48]} 9... Nxe4 {[%clk 0:03:04.1]}
10. Bxe4 {[%clk 0:02:48.9]} 10... c5 {[%clk 0:03:04.9]} 11. dxc5 {[%clk
0:02:41.6]} 11... Nxc5 {[%clk 0:03:05.8]} 12. Bc2 {[%clk 0:02:41.3]} 12... Qc7
{[%clk 0:03:00.1]} 13. Be3 {[%clk 0:02:37]} 13... a6 {[%clk 0:02:59.5]} 14. Qd5
{[%clk 0:02:20.5]} 14... b6 {[%clk 0:02:23.5]} 15. Qxa8 {[%clk 0:02:11]} 15...
Bb7 {[%clk 0:02:23.8]} 16. Qxf8+ {[%clk 0:02:08.7]} 16... Kxf8 {[%clk
0:02:24.3]} 17. Nd4 {[%clk 0:01:50.9]} 17... e5 {[%clk 0:02:17]} 18. Ne2 {[%clk
0:01:45.9]} 18... f5 {[%clk 0:02:10.6]} 19. f3 {[%clk 0:01:36.1]} 19... e4
{[%clk 0:01:44.4]} 20. f4 {[%clk 0:01:32]} 20... Nd3 {[%clk 0:01:32.7]} 21. Rab1
{[%clk 0:01:32.1]} 21... Bd5 {[%clk 0:01:20.8]} 22. a3 {[%clk 0:01:10.5]} 22...
b5 {[%clk 0:01:20.5]} 23. Nd4 {[%clk 0:01:07.5]} 23... Kf7 {[%clk 0:01:17.9]}
24. g4 {[%clk 0:00:59.7]} 24... Qd8 {[%clk 0:01:11.1]} 25. g5 {[%clk 0:00:45.9]}
25... h6 {[%clk 0:01:09.6]} 26. h4 {[%clk 0:00:45.6]} 26... hxg5 {[%clk
0:01:01.3]} 27. hxg5 {[%clk 0:00:45.2]} 27... Qh8 {[%clk 0:01:02.1]} 28. Ne2
{[%clk 0:00:32.4]} 28... Qh3 {[%clk 0:00:53.9]} 29. Bd4 {[%clk 0:00:20.6]} 29...
Qg4+ {[%clk 0:00:52.8]} 30. Kh1 {[%clk 0:00:10.3]} 30... Qh5+ {[%clk 0:00:46.8]}
31. Kg2 {[%clk 0:00:03.4]} 31... Qxe2+ {[%clk 0:00:46.3]} 0-1

[Event "Early-Titled-Tuesday-Blitz-October-03-2023"]
[Site "Chess.com"]
[Date "2023.10.03"]
[Round "3"]
[White "MokshAD1603"]
[Black "vugarrasulov"]
[Result "0-1"]
[WhiteElo "2616"]
[BlackElo "2945"]
[TimeControl "180+1"]
[EndTime "8:28:06 PDT"]
[Termination "vugarrasulov won by resignation"]

1. e4 {[%clk 0:02:49.8]} 1... e5 {[%clk 0:03:00.1]} 2. Nf3 {[%clk 0:02:49.5]}
2... Nc6 {[%clk 0:03:00.7]} 3. Bb5 {[%clk 0:02:47.6]} 3... g6 {[%clk 0:03:00.1]}
4. d4 {[%clk 0:02:45.8]} 4... exd4 {[%clk 0:02:59.3]} 5. c3 {[%clk 0:02:46.2]}
5... a6 {[%clk 0:02:56.2]} 6. Bxc6 {[%clk 0:02:45.1]} 6... dxc6 {[%clk
0:02:56.4]} 7. cxd4 {[%clk 0:02:45.8]} 7... Bg4 {[%clk 0:02:52.7]} 8. Be3 {[%clk
0:02:38]} 8... Bg7 {[%clk 0:02:52.8]} 9. Nc3 {[%clk 0:02:22.6]} 9... Ne7 {[%clk
0:02:36.6]} 10. h3 {[%clk 0:02:06.6]} 10... Bxf3 {[%clk 0:02:36.2]} 11. Qxf3
{[%clk 0:02:07.5]} 11... O-O {[%clk 0:02:29.2]} 12. Rd1 {[%clk 0:02:02.3]} 12...
f5 {[%clk 0:02:26.2]} 13. O-O {[%clk 0:01:44.4]} 13... fxe4 {[%clk 0:02:18.2]}
14. Qxe4 {[%clk 0:01:43.9]} 14... Nd5 {[%clk 0:02:18.7]} 15. Nxd5 {[%clk
0:01:08.1]} 15... cxd5 {[%clk 0:02:19.6]} 16. Qg4 {[%clk 0:01:08.9]} 16... c6
{[%clk 0:02:16.5]} 17. Bf4 {[%clk 0:01:05.6]} 17... Qc8 {[%clk 0:02:08.7]} 18.
Qg3 {[%clk 0:01:01.6]} 18... Qf5 {[%clk 0:02:06.6]} 19. Be5 {[%clk 0:01:00.5]}
19... Bxe5 {[%clk 0:01:51.7]} 20. Qxe5 {[%clk 0:01:01.4]} 20... Qxe5 {[%clk
0:01:43.3]} 21. dxe5 {[%clk 0:01:02.3]} 21... Kf7 {[%clk 0:01:42.6]} 22. f4
{[%clk 0:00:44.6]} 22... Ke6 {[%clk 0:01:42.9]} 23. g3 {[%clk 0:00:45]} 23... c5
{[%clk 0:01:39.1]} 24. Kg2 {[%clk 0:00:45.1]} 24... d4 {[%clk 0:01:38.8]} 25.
Kf3 {[%clk 0:00:45.6]} 25... Kd5 {[%clk 0:01:38.3]} 26. Rfe1 {[%clk 0:00:38.3]}
26... Rae8 {[%clk 0:01:36.2]} 27. a4 {[%clk 0:00:28]} 27... b6 {[%clk
0:01:31.2]} 28. b3 {[%clk 0:00:27.7]} 28... Re6 {[%clk 0:01:28.4]} 29. h4 {[%clk
0:00:27.9]} 29... h5 {[%clk 0:01:27.8]} 30. Re2 {[%clk 0:00:26.3]} 30... Ra8
{[%clk 0:01:17.2]} 31. Ra1 {[%clk 0:00:25.8]} 31... Ree8 {[%clk 0:01:14.5]} 32.
Rd2 {[%clk 0:00:25.4]} 32... b5 {[%clk 0:01:14.4]} 33. axb5 {[%clk 0:00:24.6]}
33... axb5 {[%clk 0:01:15.3]} 34. Rda2 {[%clk 0:00:20.6]} 34... Rxa2 {[%clk
0:01:15.6]} 35. Rxa2 {[%clk 0:00:21.5]} 35... c4 {[%clk 0:01:06.1]} 36. bxc4+
{[%clk 0:00:22.4]} 36... Kxc4 {[%clk 0:01:05.7]} 37. Ke4 {[%clk 0:00:21.6]}
37... d3 {[%clk 0:01:05.7]} 38. Ra7 {[%clk 0:00:19.5]} 38... Rd8 {[%clk
0:01:02.2]} 39. Rc7+ {[%clk 0:00:16]} 39... Kb3 {[%clk 0:01:01.3]} 40. Rc1
{[%clk 0:00:16.9]} 40... d2 {[%clk 0:01:01.3]} 0-1

[Event "Early-Titled-Tuesday-Blitz-October-03-2023"]
[Site "Chess.com"]
[Date "2023.10.03"]
[Round "3"]
[White "noblerone"]
[Black "Zohid6"]
[Result "0-1"]
[WhiteElo "2501"]
[BlackElo "2793"]
[TimeControl "180+1"]
[EndTime "8:28:06 PDT"]
[Termination "Zohid6 won by checkmate"]

1. d4 {[%clk 0:02:58.9]} 1... e6 {[%clk 0:02:59.9]} 2. Nf3 {[%clk 0:02:58.9]}
2... b6 {[%clk 0:02:59.3]} 3. Bg5 {[%clk 0:02:58.4]} 3... f6 {[%clk 0:02:58.5]}
4. Bf4 {[%clk 0:02:57.9]} 4... Bb7 {[%clk 0:02:59]} 5. e3 {[%clk 0:02:57.8]}
5... f5 {[%clk 0:02:59.6]} 6. c4 {[%clk 0:02:57.3]} 6... Nf6 {[%clk 0:02:59.9]}
7. Nc3 {[%clk 0:02:57.8]} 7... Bb4 {[%clk 0:03:00.4]} 8. Qb3 {[%clk 0:02:55.9]}
8... a5 {[%clk 0:02:57.3]} 9. a3 {[%clk 0:02:54.9]} 9... a4 {[%clk 0:02:57.5]}
10. Qc2 {[%clk 0:02:54]} 10... Bxc3+ {[%clk 0:02:57.7]} 11. Qxc3 {[%clk
0:02:54.9]} 11... O-O {[%clk 0:02:57.5]} 12. Be2 {[%clk 0:02:46.8]} 12... d6
{[%clk 0:02:57.2]} 13. O-O {[%clk 0:02:41.8]} 13... Ne4 {[%clk 0:02:57.5]} 14.
Qc2 {[%clk 0:02:25.6]} 14... Nd7 {[%clk 0:02:55.6]} 15. Nd2 {[%clk 0:02:20.5]}
15... Qf6 {[%clk 0:02:53.8]} 16. h3 {[%clk 0:02:16.5]} 16... Qg6 {[%clk
0:02:53]} 17. f3 {[%clk 0:02:10.5]} 17... Ng5 {[%clk 0:02:48.9]} 18. Bxg5 {[%clk
0:01:53.8]} 18... Qxg5 {[%clk 0:02:49.8]} 19. Qc3 {[%clk 0:01:53.8]} 19... Rf6
{[%clk 0:02:46.9]} 20. Rf2 {[%clk 0:01:51.7]} 20... Rh6 {[%clk 0:02:46]} 21. f4
{[%clk 0:01:49.6]} 21... Qg6 {[%clk 0:02:42.9]} 22. Bf3 {[%clk 0:01:47]} 22...
Bxf3 {[%clk 0:02:41.8]} 23. Rxf3 {[%clk 0:01:47.9]} 23... Nf6 {[%clk 0:02:41.7]}
24. c5 {[%clk 0:01:36.1]} 24... bxc5 {[%clk 0:02:33.2]} 25. dxc5 {[%clk
0:01:35.2]} 25... d5 {[%clk 0:02:34.1]} 26. Kh2 {[%clk 0:01:05.7]} 26... Rb8
{[%clk 0:02:14.9]} 27. Rb1 {[%clk 0:01:02.9]} 27... Ng4+ {[%clk 0:02:09]} 28.
Kg1 {[%clk 0:00:58.7]} 28... Nf6 {[%clk 0:02:08.9]} 29. Kh2 {[%clk 0:00:58.7]}
29... Qe8 {[%clk 0:02:08.3]} 30. Rg3 {[%clk 0:00:51]} 30... Rg6 {[%clk
0:02:03.8]} 31. Rxg6 {[%clk 0:00:41.3]} 31... Qxg6 {[%clk 0:02:04.7]} 32. Qe5
{[%clk 0:00:41.9]} 32... Qf7 {[%clk 0:02:03]} 33. c6 {[%clk 0:00:38.5]} 33...
Rb6 {[%clk 0:02:01.4]} 34. Qc3 {[%clk 0:00:34]} 34... Qe8 {[%clk 0:02:00.3]} 35.
Rc1 {[%clk 0:00:31.8]} 35... Qb8 {[%clk 0:01:59.9]} 36. Rc2 {[%clk 0:00:31.7]}
36... Ne8 {[%clk 0:01:56.3]} 37. Qd4 {[%clk 0:00:21.6]} 37... Nd6 {[%clk
0:01:56]} 38. Qxa4 {[%clk 0:00:21.1]} 38... h6 {[%clk 0:01:49.8]} 39. b4 {[%clk
0:00:20.3]} 39... Kh7 {[%clk 0:01:49.6]} 40. Qb3 {[%clk 0:00:19.2]} 40... Qa8
{[%clk 0:01:50.1]} 41. Qc3 {[%clk 0:00:18.6]} 41... Ra6 {[%clk 0:01:50.6]} 42.
Nf3 {[%clk 0:00:16.6]} 42... Nc4 {[%clk 0:01:47.4]} 43. b5 {[%clk 0:00:14]}
43... Rxa3 {[%clk 0:01:47.5]} 44. Qb4 {[%clk 0:00:14.2]} 44... Rxe3 {[%clk
0:01:45.5]} 45. Rf2 {[%clk 0:00:12.2]} 45... Qa7 {[%clk 0:01:44.5]} 46. Qe7
{[%clk 0:00:11.5]} 46... Re4 {[%clk 0:01:43.5]} 47. Rf1 {[%clk 0:00:10.5]} 47...
Rxf4 {[%clk 0:01:43]} 48. Qf7 {[%clk 0:00:09.9]} 48... Qb8 {[%clk 0:01:35.7]}
49. h4 {[%clk 0:00:09.6]} 49... Nd6 {[%clk 0:01:34]} 50. Qd7 {[%clk 0:00:09.1]}
50... Qxb5 {[%clk 0:01:32.7]} 51. Qxe6 {[%clk 0:00:08.4]} 51... Qxf1 {[%clk
0:01:31.1]} 52. Ng5+ {[%clk 0:00:08.5]} 52... hxg5 {[%clk 0:01:30.5]} 53. hxg5
{[%clk 0:00:09.1]} 53... Rh4+ {[%clk 0:01:30.7]} 54. Kg3 {[%clk 0:00:09.8]}
54... Qf4# {[%clk 0:01:31.4]} 0-1